fUSD/lending_fUSD_20260527
["ID","MTS","AMOUNT","RATE_DAILY","PERIOD"]
[423126807,1779870641000,-305.93697692,0.00027,2]
[423126813,1779870641000,-8239.42837146,0.00027186,2]
[423126808,1779870641000,-400.63341878,0.00027,2]
[423126809,1779870641000,-823.0694032,0.00027129,2]
[423126814,1779870641000,-6683.53,0.00027397,10]
[423126810,1779870641000,-623.00638131,0.00027131,2]
[423126857,1779870641000,-1283.71,0.00031426,2]
[423126811,1779870641000,-196.64301011,0.00027131,2]
[423126844,1779870641000,-8239.42837146,0.00030257,2]
[423126879,1779870641000,-500.0,0.00032231,2]
[423126881,1779870641000,-500.0,0.00032231,2]
[423126884,1779870641000,-500.0,0.00032231,2]
[423126895,1779870641000,-500.0,0.00032231,2]
[423126894,1779870641000,-500.0,0.00032231,2]
[423126883,1779870641000,-500.0,0.00032231,2]
[423126891,1779870641000,-500.0,0.00032231,2]
[423126889,1779870641000,-500.0,0.00032231,2]
[423126885,1779870641000,-500.0,0.00032231,2]
[423126893,1779870641000,-500.0,0.00032231,2]
[423126892,1779870641000,-500.0,0.00032231,2]
[423126886,1779870641000,-500.0,0.00032231,2]
[423126888,1779870641000,-500.0,0.00032231,2]
[423126887,1779870641000,-500.0,0.00032231,2]
[423126890,1779870641000,-500.0,0.00032231,2]
[423126896,1779870641000,-500.0,0.00032231,2]
[423126897,1779870641000,-500.0,0.00032231,2]
[423126898,1779870641000,-500.0,0.00032231,2]
[423126900,1779870641000,-500.0,0.00032231,2]
[423126908,1779870641000,-500.0,0.00032231,2]
[423126901,1779870641000,-500.0,0.00032231,2]
[423126899,1779870641000,-500.0,0.00032231,2]
[423126907,1779870641000,-500.0,0.00032231,2]
[423126902,1779870641000,-500.0,0.00032231,2]
[423126909,1779870641000,-500.0,0.00032231,2]
[423126906,1779870641000,-500.0,0.00032231,2]
[423126904,1779870641000,-500.0,0.00032231,2]
[423126905,1779870641000,-500.0,0.00032231,2]
[423126855,1779870641000,-173.06,0.00031399,120]
[423126878,1779870641000,-500.0,0.00032231,2]
[423126872,1779870641000,-500.0,0.00032231,2]
[423126903,1779870641000,-500.0,0.00032231,2]
[423126880,1779870641000,-500.0,0.00032231,2]
[423126874,1779870641000,-500.0,0.00032231,2]
[423126846,1779870641000,-150.0,0.00030364,2]
[423126856,1779870641000,-1281.43,0.000314,14]
[423126847,1779870641000,-174.01,0.00030381,2]
[423126851,1779870641000,-1742.14,0.00030851,120]
[423126854,1779870641000,-174.01,0.00031301,2]
[423126849,1779870641000,-4805.6,0.00030751,2]
[423126853,1779870641000,-390.07268607,0.00031243,7]
[423126850,1779870641000,-173.03,0.000308,7]
[423126870,1779870641000,-500.0,0.00032231,2]
[423126859,1779870641000,-9999.99,0.00031426,2]
[423126869,1779870641000,-500.0,0.00032231,2]
[423126858,1779870641000,-999.99,0.00031426,2]
[423126860,1779870641000,-7075.47,0.00031426,2]
[423126852,1779870641000,-254.13290355,0.00031,120]
[423126863,1779870641000,-150.0,0.0003202,15]
[423126910,1779870641000,-500.0,0.00032231,2]
[423126865,1779870641000,-174.01,0.00032222,2]
[423126873,1779870641000,-500.0,0.00032231,2]
[423126876,1779870641000,-500.0,0.00032231,2]
[423126877,1779870641000,-500.0,0.00032231,2]
[423126871,1779870641000,-500.0,0.00032231,2]
[423126875,1779870641000,-500.0,0.00032231,2]
[423126882,1779870641000,-500.0,0.00032231,2]
[423126867,1779870641000,-500.0,0.00032231,2]
[423126864,1779870641000,-210.40860113,0.00032051,3]
[423126866,1779870641000,-500.0,0.00032231,2]
[423126868,1779870641000,-500.0,0.00032231,2]
[423126862,1779870641000,-1540.41853989,0.00032,120]
[423126861,1779870641000,-500.0,0.00031999,2]
[423126940,1779870642000,-1000.0,0.00034433,15]
[423126933,1779870642000,-174.01,0.00034063,2]
[423126935,1779870642000,-500.0,0.00034296,60]
[423126937,1779870642000,-170.0,0.00034296,60]
[423126936,1779870642000,-500.0,0.00034296,60]
[423126938,1779870642000,-707.26835115,0.00034421,7]
[423126939,1779870642000,-1000.0,0.00034421,7]
[423126944,1779870642000,-1281.43,0.000348,14]
[423126949,1779870642000,-284.84224785,0.00034828,2]
[423126934,1779870642000,-500.0,0.00034274,2]
[423126941,1779870642000,-150.0,0.00034486,15]
[423126942,1779870642000,-173.03,0.000346,7]
[423126946,1779870642000,-150.0,0.00034828,2]
[423126947,1779870642000,-150.0,0.00034828,2]
[423126955,1779870642000,-299.999999,0.00035,4]
[423126931,1779870642000,-720.34,0.00033999,120]
[423126952,1779870642000,-1000.0,0.00034999,4]
[423126943,1779870642000,-1742.14,0.00034707,120]
[423126926,1779870642000,-174.01,0.00033143,2]
[423126916,1779870642000,-212.38132233,0.00032232,2]
[423126932,1779870642000,-208.97895572,0.00034,120]
[423126948,1779870642000,-150.0,0.00034828,2]
[423126911,1779870642000,-319.1543372,0.00032231,2]
[423126912,1779870642000,-1136.96,0.00032232,10]
[423126914,1779870642000,-299.99,0.00032232,30]
[423126913,1779870642000,-8531.32,0.00032232,2]
[423126915,1779870642000,-150.99,0.00032232,2]
[423126918,1779870642000,-372.60927676,0.00032232,2]
[423126921,1779870642000,-60749.38,0.00032588,2]
[423126929,1779870642000,-1540.41853989,0.000339,120]
[423126917,1779870642000,-1490.0,0.00032232,2]
[423126920,1779870642000,-434.01,0.00032232,15]
[423126923,1779870642000,-1852.04822205,0.0003287,7]
[423126927,1779870642000,-8239.42837146,0.00033329,2]
[423126928,1779870642000,-150.0,0.00033664,15]
[423126930,1779870642000,-216.0,0.00033945,10]
[423126924,1779870642000,-9315.05,0.00032896,2]
[423126925,1779870642000,-1540.41853989,0.00033,120]
[423126922,1779870642000,-150.0,0.00032842,15]
[423126919,1779870642000,-1149.73940091,0.00032232,2]
[423126950,1779870642000,-666.74799947,0.0003488,120]
[423126951,1779870642000,-174.01,0.00034984,2]
[423126988,1779870642000,-894.65434383,0.0003552,2]
[423126973,1779870642000,-300.0,0.0003552,2]
[423126974,1779870642000,-300.0,0.0003552,2]
[423126972,1779870642000,-300.0,0.0003552,2]
[423126975,1779870642000,-300.0,0.0003552,2]
[423126981,1779870642000,-300.0,0.0003552,2]
[423126983,1779870642000,-300.0,0.0003552,2]
[423126985,1779870642000,-300.0,0.0003552,2]
[423126984,1779870642000,-300.0,0.0003552,2]
[423126978,1779870642000,-300.0,0.0003552,2]
[423126986,1779870642000,-528.48327171,0.0003552,2]
[423126987,1779870642000,-1068.40163352,0.0003552,2]
[423126991,1779870642000,-302.21937029,0.0003552,2]
[423126989,1779870642000,-727.07827244,0.0003552,2]
[423126993,1779870642000,-300.99795142,0.0003552,2]
[423126982,1779870642000,-605.31118564,0.0003552,2]
[423126992,1779870642000,-300.0,0.0003552,2]
[423126994,1779870642000,-300.0,0.0003552,2]
[423126945,1779870642000,-2966.0,0.000348,120]
[423126990,1779870642000,-300.0,0.0003552,2]
[423126977,1779870642000,-479.60716553,0.0003552,2]
[423126976,1779870642000,-300.0,0.0003552,2]
[423126970,1779870642000,-500.39470023,0.0003552,2]
[423126954,1779870642000,-1540.41853989,0.00035,120]
[423126953,1779870642000,-185.18159464,0.00035,7]
[423126957,1779870642000,-151.0,0.00035102,2]
[423126956,1779870642000,-170.0,0.00035,30]
[423126968,1779870642000,-1096.2926835,0.0003552,2]
[423126966,1779870642000,-300.0,0.0003552,2]
[423126962,1779870642000,-1233.9396,0.00035345,30]
[423126959,1779870642000,-199.111986,0.00035102,2]
[423126967,1779870642000,-300.0,0.0003552,2]
[423126958,1779870642000,-156.587,0.00035102,2]
[423126960,1779870642000,-1377.42282658,0.00035102,2]
[423126961,1779870642000,-217.21727,0.00035314,10]
[423126965,1779870642000,-300.0,0.0003552,2]
[423126964,1779870642000,-300.0,0.0003552,2]
[423126969,1779870642000,-300.0,0.0003552,2]
[423126980,1779870642000,-300.0,0.0003552,2]
[423126979,1779870642000,-493.38669858,0.0003552,2]
[423126971,1779870642000,-300.0,0.0003552,2]
[423126963,1779870642000,-310.28230408,0.0003552,2]
[423127031,1779870643000,-300.0,0.0003552,2]
[423127044,1779870643000,-300.0,0.0003552,2]
[423127038,1779870643000,-460.02366072,0.0003552,2]
[423127034,1779870643000,-894.65434383,0.0003552,2]
[423127042,1779870643000,-300.0,0.0003552,2]
[423127023,1779870643000,-300.0,0.0003552,2]
[423127041,1779870643000,-300.99795142,0.0003552,2]
[423127040,1779870643000,-300.0,0.0003552,2]
[423127025,1779870643000,-493.38669858,0.0003552,2]
[423127024,1779870643000,-300.0,0.0003552,2]
[423127033,1779870643000,-1068.40163352,0.0003552,2]
[423127026,1779870643000,-300.0,0.0003552,2]
[423127032,1779870643000,-528.48327171,0.0003552,2]
[423127045,1779870643000,-1263.96825586,0.0003552,2]
[423127055,1779870643000,-464.48677942,0.0003552,2]
[423127036,1779870643000,-727.07827244,0.0003552,2]
[423127043,1779870643000,-300.0,0.0003552,2]
[423127046,1779870643000,-344.45437934,0.0003552,2]
[423127057,1779870643000,-578.28315025,0.0003552,2]
[423127047,1779870643000,-527.62572404,0.0003552,2]
[423127048,1779870643000,-865.6208675,0.0003552,2]
[423127049,1779870643000,-950.32029804,0.0003552,2]
[423127050,1779870643000,-300.09384644,0.0003552,2]
[423127052,1779870643000,-310.02493426,0.0003552,2]
[423127051,1779870643000,-1148.83589152,0.0003552,2]
[423127054,1779870643000,-300.0,0.0003552,2]
[423127053,1779870643000,-594.79850986,0.0003552,2]
[423127030,1779870643000,-300.0,0.0003552,2]
[423127039,1779870643000,-302.21937029,0.0003552,2]
[423127020,1779870643000,-1096.2926835,0.0003552,2]
[423127001,1779870643000,-527.62572404,0.0003552,2]
[423127021,1779870643000,-300.0,0.0003552,2]
[423126995,1779870643000,-321.2551417,0.0003552,2]
[423127005,1779870643000,-950.32029804,0.0003552,2]
[423127007,1779870643000,-310.02493426,0.0003552,2]
[423127006,1779870643000,-1148.83589152,0.0003552,2]
[423126999,1779870643000,-300.0,0.0003552,2]
[423127002,1779870643000,-300.0,0.0003552,2]
[423126996,1779870643000,-300.0,0.0003552,2]
[423127004,1779870643000,-300.09384644,0.0003552,2]
[423126998,1779870643000,-1263.96825586,0.0003552,2]
[423126997,1779870643000,-300.0,0.0003552,2]
[423127003,1779870643000,-865.6208675,0.0003552,2]
[423127000,1779870643000,-344.45437934,0.0003552,2]
[423127008,1779870643000,-594.79850986,0.0003552,2]
[423127010,1779870643000,-464.48677942,0.0003552,2]
[423127012,1779870643000,-452.52893397,0.0003552,2]
[423127019,1779870643000,-300.0,0.0003552,2]
[423127011,1779870643000,-578.28315025,0.0003552,2]
[423127014,1779870643000,-300.0,0.0003552,2]
[423127009,1779870643000,-300.0,0.0003552,2]
[423127013,1779870643000,-300.0,0.0003552,2]
[423127016,1779870643000,-484.76763572,0.0003552,2]
[423127015,1779870643000,-300.0,0.0003552,2]
[423127017,1779870643000,-310.28230408,0.0003552,2]
[423127018,1779870643000,-300.0,0.0003552,2]
[423127028,1779870643000,-605.31118564,0.0003552,2]
[423127029,1779870643000,-300.0,0.0003552,2]
[423127022,1779870643000,-300.0,0.0003552,2]
[423127027,1779870643000,-300.0,0.0003552,2]
[423127056,1779870643000,-300.0,0.0003552,2]
[423127106,1779870643000,-824.1525525,0.00036347,2]
[423127058,1779870643000,-452.52893397,0.0003552,2]
[423127097,1779870643000,-1000.0,0.00036065,13]
[423127095,1779870643000,-307.8568096,0.00035976,2]
[423127094,1779870643000,-150.5247936,0.00035976,2]
[423127096,1779870643000,-1540.41853989,0.00036,120]
[423127098,1779870643000,-809.8,0.00036093,2]
[423127100,1779870643000,-59933.20441263,0.0003619,2]
[423127099,1779870643000,-73234.19327638,0.0003619,2]
[423127111,1779870643000,-500.0,0.0003637,7]
[423127110,1779870643000,-500.0,0.0003637,120]
[423127101,1779870643000,-167.19015429,0.00036215,2]
[423127102,1779870643000,-33218.9209,0.00036247,2]
[423127108,1779870643000,-183.98319049,0.00036363,2]
[423127109,1779870643000,-183.98319049,0.00036364,2]
[423127091,1779870643000,-200.0,0.000358,13]
[423127105,1779870643000,-2000.0,0.00036346,2]
[423127104,1779870643000,-1922.28121943,0.00036346,2]
[423127103,1779870643000,-1000.0,0.0003625,120]
[423127112,1779870643000,-1000.0,0.00036398,60]
[423127114,1779870643000,-1281.43,0.000364,14]
[423127116,1779870643000,-221773.4287626,0.00036414,2]
[423127115,1779870643000,-8239.42837146,0.000364,2]
[423127113,1779870643000,-202.86401675,0.000364,2]
[423127117,1779870643000,-6521.8231631,0.00036414,2]
[423127119,1779870643000,-22538.3326583,0.00036414,2]
[423127118,1779870643000,-10115.182518,0.00036414,2]
[423127122,1779870643000,-338.672048,0.00036414,7]
[423127059,1779870643000,-300.0,0.0003552,2]
[423127121,1779870643000,-338.672048,0.00036414,7]
[423127107,1779870643000,-288.46014155,0.00036347,2]
[423127092,1779870643000,-189.54,0.00035827,2]
[423127120,1779870643000,-151.0,0.00036414,7]
[423127093,1779870643000,-200.0,0.000359,13]
[423127086,1779870643000,-200.0,0.00035616,90]
[423127068,1779870643000,-300.0,0.0003552,2]
[423127060,1779870643000,-300.0,0.0003552,2]
[423127061,1779870643000,-300.0,0.0003552,2]
[423127062,1779870643000,-300.0,0.0003552,2]
[423127069,1779870643000,-300.0,0.0003552,2]
[423127070,1779870643000,-1096.2926835,0.0003552,2]
[423127071,1779870643000,-300.0,0.0003552,2]
[423127064,1779870643000,-484.76763572,0.0003552,2]
[423127063,1779870643000,-300.0,0.0003552,2]
[423127073,1779870643000,-300.0,0.0003552,2]
[423127081,1779870643000,-200.0,0.00035616,90]
[423127084,1779870643000,-200.0,0.00035616,90]
[423127083,1779870643000,-200.0,0.00035616,90]
[423127066,1779870643000,-310.28230408,0.0003552,2]
[423127072,1779870643000,-300.0,0.0003552,2]
[423127089,1779870643000,-323.3284,0.00035616,90]
[423127090,1779870643000,-607.73253053,0.0003565,2]
[423127088,1779870643000,-200.0,0.00035616,90]
[423127087,1779870643000,-200.0,0.00035616,90]
[423127085,1779870643000,-200.0,0.00035616,90]
[423127082,1779870643000,-200.0,0.00035616,90]
[423127080,1779870643000,-200.0,0.00035616,90]
[423127076,1779870643000,-200.0,0.00035616,90]
[423127078,1779870643000,-200.0,0.00035616,90]
[423127075,1779870643000,-152.18,0.00035616,60]
[423127079,1779870643000,-200.0,0.00035616,90]
[423127074,1779870643000,-1000.0,0.00035553,81]
[423127077,1779870643000,-200.0,0.00035616,90]
[423127166,1779870644000,-500.0,0.00036445,120]
[423127169,1779870644000,-500.0,0.00036445,7]
[423127163,1779870644000,-720.52946099,0.00036445,120]
[423127152,1779870644000,-151.0,0.00036414,7]
[423127156,1779870644000,-255.127716,0.00036414,7]
[423127155,1779870644000,-255.127716,0.00036414,7]
[423127157,1779870644000,-728.72845236,0.00036436,2]
[423127158,1779870644000,-720.34,0.00036445,120]
[423127150,1779870644000,-151.0,0.00036414,7]
[423127149,1779870644000,-445.890192,0.00036414,7]
[423127159,1779870644000,-720.34,0.00036445,120]
[423127176,1779870644000,-419.32230586,0.00036445,7]
[423127175,1779870644000,-500.0,0.00036445,7]
[423127172,1779870644000,-500.0,0.00036445,7]
[423127162,1779870644000,-720.34,0.00036445,120]
[423127165,1779870644000,-500.0,0.00036445,120]
[423127173,1779870644000,-500.0,0.00036445,7]
[423127164,1779870644000,-500.0,0.00036445,120]
[423127168,1779870644000,-500.0,0.00036445,7]
[423127171,1779870644000,-500.0,0.00036445,7]
[423127167,1779870644000,-638.42379637,0.00036445,120]
[423127177,1779870644000,-500.0,0.00036446,120]
[423127181,1779870644000,-500.0,0.00036446,120]
[423127178,1779870644000,-500.0,0.00036446,30]
[423127153,1779870644000,-255.127716,0.00036414,7]
[423127188,1779870644000,-500.0,0.00036446,120]
[423127170,1779870644000,-500.0,0.00036445,7]
[423127160,1779870644000,-720.34,0.00036445,120]
[423127140,1779870644000,-289.863686,0.00036414,7]
[423127161,1779870644000,-720.34,0.00036445,120]
[423127183,1779870644000,-500.0,0.00036446,120]
[423127123,1779870644000,-338.672048,0.00036414,7]
[423127125,1779870644000,-151.0,0.00036414,7]
[423127135,1779870644000,-151.0,0.00036414,7]
[423127132,1779870644000,-151.0,0.00036414,7]
[423127133,1779870644000,-642.668548,0.00036414,7]
[423127126,1779870644000,-172.54602,0.00036414,7]
[423127136,1779870644000,-151.0,0.00036414,7]
[423127124,1779870644000,-338.672048,0.00036414,7]
[423127127,1779870644000,-642.668548,0.00036414,7]
[423127130,1779870644000,-151.0,0.00036414,7]
[423127128,1779870644000,-642.668548,0.00036414,7]
[423127129,1779870644000,-151.0,0.00036414,7]
[423127131,1779870644000,-642.668548,0.00036414,7]
[423127134,1779870644000,-151.145608,0.00036414,7]
[423127137,1779870644000,-151.0,0.00036414,7]
[423127139,1779870644000,-151.0,0.00036414,7]
[423127138,1779870644000,-151.0,0.00036414,7]
[423127148,1779870644000,-445.890192,0.00036414,7]
[423127141,1779870644000,-289.863686,0.00036414,7]
[423127142,1779870644000,-289.863686,0.00036414,7]
[423127143,1779870644000,-289.863686,0.00036414,7]
[423127146,1779870644000,-445.890192,0.00036414,7]
[423127144,1779870644000,-151.0,0.00036414,7]
[423127147,1779870644000,-445.890192,0.00036414,7]
[423127145,1779870644000,-151.0,0.00036414,7]
[423127151,1779870644000,-151.0,0.00036414,7]
[423127154,1779870644000,-255.127716,0.00036414,7]
[423127182,1779870644000,-500.0,0.00036446,120]
[423127174,1779870644000,-500.0,0.00036445,7]
[423127187,1779870644000,-500.0,0.00036446,120]
[423127219,1779870644000,-338.672048,0.00036446,7]
[423127218,1779870644000,-338.672048,0.00036446,7]
[423127223,1779870644000,-642.668548,0.00036446,7]
[423127215,1779870644000,-151.0,0.00036446,7]
[423127221,1779870644000,-500.0,0.00036446,120]
[423127222,1779870644000,-552.07278479,0.00036446,120]
[423127220,1779870644000,-151.0,0.00036446,7]
[423127214,1779870644000,-500.0,0.00036446,120]
[423127227,1779870644000,-642.668548,0.00036446,7]
[423127226,1779870644000,-151.0,0.00036446,7]
[423127225,1779870644000,-151.0,0.00036446,7]
[423127224,1779870644000,-642.668548,0.00036446,7]
[423127229,1779870644000,-642.668548,0.00036446,7]
[423127228,1779870644000,-151.0,0.00036446,7]
[423127231,1779870644000,-500.0,0.00036446,120]
[423127234,1779870644000,-151.0,0.00036446,7]
[423127230,1779870644000,-500.0,0.00036446,120]
[423127232,1779870644000,-151.0,0.00036446,7]
[423127233,1779870644000,-257.44806804,0.00036446,120]
[423127236,1779870644000,-151.0,0.00036446,7]
[423127235,1779870644000,-151.0,0.00036446,7]
[423127237,1779870644000,-500.0,0.00036446,7]
[423127239,1779870644000,-500.0,0.00036446,7]
[423127238,1779870644000,-500.0,0.00036446,7]
[423127243,1779870644000,-500.0,0.00036446,7]
[423127241,1779870644000,-500.0,0.00036446,7]
[423127179,1779870644000,-500.0,0.00036446,120]
[423127216,1779870644000,-338.672048,0.00036446,7]
[423127217,1779870644000,-338.672048,0.00036446,7]
[423127240,1779870644000,-500.0,0.00036446,7]
[423127210,1779870644000,-151.0,0.00036446,7]
[423127213,1779870644000,-159.415128,0.00036446,7]
[423127180,1779870644000,-500.0,0.00036446,120]
[423127186,1779870644000,-500.0,0.00036446,120]
[423127184,1779870644000,-500.0,0.00036446,120]
[423127189,1779870644000,-500.0,0.00036446,120]
[423127200,1779870644000,-151.0,0.00036446,7]
[423127192,1779870644000,-500.0,0.00036446,120]
[423127190,1779870644000,-500.0,0.00036446,120]
[423127191,1779870644000,-500.0,0.00036446,120]
[423127242,1779870644000,-500.0,0.00036446,7]
[423127193,1779870644000,-500.0,0.00036446,120]
[423127199,1779870644000,-151.0,0.00036446,7]
[423127197,1779870644000,-637.09680962,0.00036446,120]
[423127195,1779870644000,-500.0,0.00036446,120]
[423127185,1779870644000,-604.76395899,0.00036446,120]
[423127196,1779870644000,-500.0,0.00036446,120]
[423127207,1779870644000,-151.0,0.00036446,30]
[423127206,1779870644000,-243.854168,0.00036446,7]
[423127209,1779870644000,-210.425724,0.00036446,30]
[423127211,1779870644000,-151.0,0.00036446,7]
[423127194,1779870644000,-500.0,0.00036446,120]
[423127201,1779870644000,-151.794388,0.00036446,7]
[423127208,1779870644000,-151.0,0.00036446,30]
[423127204,1779870644000,-243.854168,0.00036446,7]
[423127212,1779870644000,-151.0,0.00036446,7]
[423127205,1779870644000,-243.854168,0.00036446,7]
[423127202,1779870644000,-151.0,0.00036446,7]
[423127198,1779870644000,-151.0,0.00036446,7]
[423127203,1779870644000,-243.854168,0.00036446,7]
[423127285,1779870645000,-151.0,0.00036447,7]
[423127281,1779870645000,-500.0,0.00036447,2]
[423127292,1779870645000,-151.0,0.00036447,7]
[423127283,1779870645000,-500.0,0.00036447,2]
[423127278,1779870645000,-500.0,0.00036447,2]
[423127273,1779870645000,-151.0,0.00036446,7]
[423127280,1779870645000,-500.0,0.00036447,2]
[423127277,1779870645000,-500.0,0.00036447,2]
[423127279,1779870645000,-151.0,0.00036447,7]
[423127274,1779870645000,-2500000.0,0.00036446,2]
[423127282,1779870645000,-500.0,0.00036447,2]
[423127284,1779870645000,-500.0,0.00036447,2]
[423127288,1779870645000,-500.0,0.00036447,2]
[423127290,1779870645000,-500.0,0.00036447,2]
[423127289,1779870645000,-500.0,0.00036447,2]
[423127291,1779870645000,-500.0,0.00036447,2]
[423127286,1779870645000,-151.0,0.00036447,7]
[423127293,1779870645000,-500.0,0.00036447,2]
[423127301,1779870645000,-500.0,0.00036447,2]
[423127300,1779870645000,-500.0,0.00036447,2]
[423127302,1779870645000,-500.0,0.00036447,2]
[423127294,1779870645000,-500.0,0.00036447,2]
[423127303,1779870645000,-500.0,0.00036447,2]
[423127275,1779870645000,-1500000.0,0.00036447,2]
[423127295,1779870645000,-500.0,0.00036447,2]
[423127287,1779870645000,-500.0,0.00036447,2]
[423127276,1779870645000,-151.0,0.00036447,7]
[423127259,1779870645000,-151.0,0.00036446,7]
[423127271,1779870645000,-500.0,0.00036446,120]
[423127298,1779870645000,-500.0,0.00036447,2]
[423127245,1779870645000,-289.863686,0.00036446,7]
[423127246,1779870645000,-289.863686,0.00036446,7]
[423127247,1779870645000,-289.863686,0.00036446,7]
[423127251,1779870645000,-445.890192,0.00036446,7]
[423127248,1779870645000,-289.863686,0.00036446,7]
[423127257,1779870645000,-500.0,0.00036446,120]
[423127250,1779870645000,-151.0,0.00036446,7]
[423127253,1779870645000,-445.890192,0.00036446,7]
[423127256,1779870645000,-500.0,0.00036446,120]
[423127255,1779870645000,-151.0,0.00036446,7]
[423127249,1779870645000,-151.0,0.00036446,7]
[423127272,1779870645000,-301.549184,0.00036446,7]
[423127252,1779870645000,-445.890192,0.00036446,7]
[423127262,1779870645000,-255.127716,0.00036446,7]
[423127264,1779870645000,-255.127716,0.00036446,7]
[423127258,1779870645000,-521.10233812,0.00036446,120]
[423127263,1779870645000,-255.127716,0.00036446,7]
[423127260,1779870645000,-153.759988,0.00036446,7]
[423127269,1779870645000,-500.0,0.00036446,120]
[423127261,1779870645000,-255.127716,0.00036446,7]
[423127265,1779870645000,-500.0,0.00036446,120]
[423127267,1779870645000,-500.0,0.00036446,120]
[423127268,1779870645000,-500.0,0.00036446,120]
[423127266,1779870645000,-500.0,0.00036446,120]
[423127270,1779870645000,-500.0,0.00036446,120]
[423127254,1779870645000,-445.890192,0.00036446,7]
[423127299,1779870645000,-500.0,0.00036447,2]
[423127244,1779870645000,-152.44869,0.00036446,7]
[423127304,1779870645000,-500.0,0.00036447,2]
[423127333,1779870645000,-500.0,0.00036447,2]
[423127332,1779870645000,-151.0,0.00036447,7]
[423127335,1779870645000,-500.0,0.00036447,2]
[423127334,1779870645000,-500.0,0.00036447,2]
[423127337,1779870645000,-500.0,0.00036447,2]
[423127340,1779870645000,-151.0,0.00036447,7]
[423127342,1779870645000,-500.0,0.00036447,2]
[423127344,1779870645000,-500.0,0.00036447,2]
[423127343,1779870645000,-500.0,0.00036447,2]
[423127345,1779870645000,-500.0,0.00036447,2]
[423127347,1779870645000,-500.0,0.00036447,2]
[423127346,1779870645000,-500.0,0.00036447,2]
[423127336,1779870645000,-500.0,0.00036447,2]
[423127341,1779870645000,-500.0,0.00036447,2]
[423127348,1779870645000,-500.0,0.00036447,2]
[423127349,1779870645000,-500.0,0.00036447,2]
[423127353,1779870645000,-500.0,0.00036447,2]
[423127357,1779870645000,-500.0,0.00036447,2]
[423127356,1779870645000,-500.0,0.00036447,2]
[423127352,1779870645000,-500.0,0.00036447,2]
[423127354,1779870645000,-500.0,0.00036447,2]
[423127355,1779870645000,-500.0,0.00036447,2]
[423127359,1779870645000,-500.0,0.00036447,2]
[423127358,1779870645000,-500.0,0.00036447,2]
[423127360,1779870645000,-449.313847,0.00036447,2]
[423127296,1779870645000,-500.0,0.00036447,2]
[423127351,1779870645000,-500.0,0.00036447,2]
[423127331,1779870645000,-500.0,0.00036447,2]
[423127350,1779870645000,-500.0,0.00036447,2]
[423127330,1779870645000,-500.0,0.00036447,2]
[423127297,1779870645000,-500.0,0.00036447,2]
[423127338,1779870645000,-500.0,0.00036447,2]
[423127306,1779870645000,-500.0,0.00036447,2]
[423127308,1779870645000,-500.0,0.00036447,2]
[423127315,1779870645000,-500.0,0.00036447,2]
[423127305,1779870645000,-500.0,0.00036447,2]
[423127310,1779870645000,-500.0,0.00036447,2]
[423127307,1779870645000,-243.854168,0.00036447,7]
[423127309,1779870645000,-500.0,0.00036447,2]
[423127311,1779870645000,-500.0,0.00036447,2]